Workbook

Sheet Table_S1
A1: Country | B1: Name | C1: Lat | D1: Lon | E1: Period | F1: years(n) | G1: ragweed(n) | H1: percentage | I1: Mean number of days with ragweed pollen recorded | J1: SD | K1: Slope | L1: SE | M1: p | N1: R2 | O1: Mean ragweed pollen sum | P1: SD | Q1: slope | R1: SE | S1: p | T1: R2
A2: Sweden | B2: Borlänge | C2: 60.486944 | D2: 15.407222 | E2: 2012 | F2: 1 | G2: 0 | H2: =G2*100/F2 -> 0 | I2: 0 | O2: 0
A3: Sweden | B3: Stockholm | C3: 59.365611 | D3: 18.059639 | E3: 2004-2013 | F3: 10 | G3: 6 | H3: =G3*100/F3 -> 60 | I3: 2.9 | J3: 3.695342414 | K3: -0.358 | L3: 0.413 | M3: 0.411 | N3: 0.086 | O3: 10.5 | P3: 16.65499591 | Q3: -0.261 | R3: 1.943 | S3: 0.897 | T3: 0.002
A4: Sweden | B4: Bäckefors | C4: =58+47/60+52.7/3600 -> 58.79797222 | D4: =12+9/60+38.6/3600 -> 12.16072222 | E4: 2009-2013 | F4: 5 | G4: 1 | H4: =G4*100/F4 -> 20 | I4: 5 | J4: 1 | O4: 0 | P4: 0
A5: Sweden | B5: Västervik | C5: 57.755333 | D5: 16.636389 | E5: 2009.2012 | F5: 2 | G5: 1 | H5: =G5*100/F5 -> 50 | I5: 3 | J5: 4.242640687 | O5: 3.5 | P5: 4.949747468
A6: Sweden | B6: Gothenburg | C6: =57+43/60+16.2/3600 -> 57.72116667 | D6: =12+3/60+6.6/3600 -> 12.05183333 | E6: 2004-2013 | F6: 10 | G6: 7 | H6: =G6*100/F6 -> 70 | I6: 3 | J6: 2.905932629 | K6: -0.424 | L6: 0.304 | M6: 0.201 | N6: 0.195 | O6: 10.4 | P6: 15.26215363 | Q6: -2.036 | R6: 1.63 | S6: 0.247 | T6: 0.163
A7: Sweden | B7: Nässjö | C7: 57.656083 | D7: 14.698 | E7: 2009 | F7: 1 | G7: 1 | H7: =G7*100/F7 -> 100 | I7: 4 | O7: 7
A8: Latvia | B8: Riga | C8: 56.9508 | D8: 24.1163 | E8: 2009-2011 | F8: 3 | G8: 3 | H8: =G8*100/F8 -> 100 | I8: 7.333333333 | J8: 2.081665999 | O8: 13 | P8: 1
A9: Denmark | B9: Viborg | C9: 56.445148 | D9: 9.403531 | E9: 2004-2013 | F9: 10 | G9: 8 | H9: =G9*100/F9 -> 80 | I9: 2 | J9: 2 | K9: 0.04242424242 | L9: 0.2087172771 | M9: 0.8440052403 | N9: 0.005137884031 | O9: 4 | P9: 3 | Q9: -0.1878787879 | R9: 0.4141217044 | S9: 0.6621129863 | T9: 0.02508287004
A10: Sweden | B10: Bräkne-Hoby | C10: =56+13/60+30.6/3600 -> 56.22516667 | D10: =15+7/60+22.3/3600 -> 15.12286111 | E10: 2004-2013 | F10: 10 | G10: 10 | H10: =G10*100/F10 -> 100 | I10: 4 | J10: 5 | K10: -0.35 | L10: 0.1996 | M10: 0.122 | N10: 0.2718 | O10: 7 | P10: 23 | Q10: -0.0268 | R10: 0.0462 | S10: 0.58 | T10: 0.04
A11: Sweden | B11: Hässleholm | C11: =56+9/60+36.8/3600 -> 56.16022222 | D11: =13+46/60+35.3/3600 -> 13.77647222 | E11: 2011-2013 | F11: 3 | G11: 3 | H11: =G11*100/F11 -> 100 | I11: 1 | J11: 1 | O11: 3 | P11: 7
A12: Denmark | B12: Copenhagen | C12: 55.71555 | D12: 12.561986 | E12: 2004-2013 | F12: 10 | G12: 9 | H12: =G12*100/F12 -> 90 | I12: 4 | J12: 7 | K12: 0.3515151515 | L12: 0.4795927259 | M12: 0.4845116 | N12: 0.06292555181 | O12: 16 | P12: 14 | Q12: -1.612121212 | R12: 1.584961465 | S12: 0.3388597306 | T12: 0.1145119212
A13: Sweden | B13: Malmö | C13: =55+35/60+4.9/3600 -> 55.58469444 | D13: =13+0/60+12.7/3600 -> 13.00352778 | E13: 2004-2013 | F13: 10 | G13: 10 | H13: =G13*100/F13 -> 100 | I13: 4 | J13: 5 | K13: -0.42 | L13: 0.22 | M13: 0.0086 | N13: 0.3742 | O13: 17 | P13: 34 | Q13: -0.28 | R13: 0.04 | S13: 0.363 | T13: 0.11
A14: Lithuania | B14: Klaipėda | C14: 55.75555556 | D14: 21.12555556 | E14: 2004-2013 | F14: 10 | G14: 10 | H14: =G14*100/F14 -> 100 | I14: 9 | J14: 10 | K14: 2.884848485 | L14: 0.4789604599 | M14: 0.0003151691515 | N14: 0.81932451 | O14: 29 | P14: 37 | Q14: 9.43030303 | R14: 2.777840954 | S14: 0.009432287213 | T14: 0.5902664412
A15: Lithuania | B15: Šiauliai | C15: 55.92666667 | D15: 23.30888889 | E15: 2004-2013 | F15: 10 | G15: 10 | H15: =G15*100/F15 -> 100 | I15: 14 | J15: 11 | K15: 3.418181818 | L15: 0.5566032362 | M15: 0.0002766685279 | N15: 0.8249976658 | O15: 61 | P15: 48 | Q15: 12.09090909 | R15: 3.690162635 | S15: 0.01124603552 | T15: 0.5730057258
A16: Lithuania | B16: Vilnius | C16: 54.67777778 | D16: 25.26805556 | E16: 2005-2013 | F16: 9 | G16: 9 | H16: =G16*100/F16 -> 100 | I16: 16 | J16: 10 | K16: 2.757575758 | L16: 0.6839629566 | M16: 0.003778783915 | N16: 0.6701725081 | O16: 115 | P16: 131 | Q16: 15.56363636 | R16: 14.32894353 | S16: 0.3090458975 | T16: 0.1285175575
A17: Belarus | B17: Minsk | C17: 53.9075 | D17: 27.412778 | E17: 2006-2013 | F17: 8 | G17: 8 | H17: =G17*100/F17 -> 100 | I17: 10.375 | J17: 3.54310195 | K17: 0.583 | L17: 0.54 | M17: 0.322 | N17: 0.163 | O17: 174.5 | P17: 187.0973772 | Q17: 9.071 | R17: 30.962 | S17: 0.779 | T17: 0.014
A18: Poland | B18: Szczecin | C18: 53.26222 | D18: 14.32521 | E18: 2004 -2013 | F18: 10 | G18: 10 | H18: =G18*100/F18 -> 100 | I18: 26 | J18: 3 | K18: -0.43 | L18: 0.28 | M18: 0.162 | N18: 0.228 | O18: 102 | P18: 26 | Q18: 0.96 | R18: 3.08 | S18: 0.762 | T18: 0.012
A19: United Kingdom | B19: Derby | C19: 52.938622 | D19: -1.496356 | E19: 2004.2005 | F19: 2 | G19: 1 | H19: =G19*100/F19 -> 50 | I19: 1 | J19: 1.414213562 | O19: 1 | P19: 1.414213562
A20: United Kingdom | B20: Leicester | C20: 52.623159 | D20: -1.122711 | E20: 2006-2013 | F20: 8 | G20: 2 | H20: =G20*100/F20 -> 25 | I20: 1 | J20: 1 | K20: -0.31 | L20: 0.126 | M20: 0.049 | N20: 0.503 | O20: 1 | P20: 1 | Q20: -0.393 | R20: 0.171 | S20: 0.062 | T20: 0.467
A21: Poland | B21: Poznań | C21: 52.40549 | D21: 16.88924 | E21: 2004-2013 | F21: 10 | G21: 10 | H21: =G21*100/F21 -> 100 | I21: 18 | J21: 7 | K21: -0.11 | L21: 0.79 | M21: 0.894 | N21: 0.002 | O21: 94 | P21: 80 | Q21: -8.5 | R21: 8.92 | S21: 0.369 | T21: 0.102
A22: United Kingdom | B22: Worcester | C22: 52.196895 | D22: -2.24194 | E22: 2004-2013 | F22: 10 | G22: 10 | H22: =G22*100/F22 -> 100 | I22: 1 | J22: 2 | K22: 0.3212121212 | L22: 0.184176623 | M22: 0.1193086798 | N22: 0.2754731784 | O22: 2 | P22: 1 | Q22: 0.3757575758 | R22: 0.2130283633 | S22: 0.1157597543 | T22: 0.280011655
A23: Netherlands | B23: Leiden | C23: 52.165592 | D23: 4.47714 | E23: 2004-2013 | F23: 10 | G23: 10 | H23: =G23*100/F23 -> 100 | I23: 4 | J23: 3 | K23: -1.57e-17 | L23: 0.427 | M23: 1 | N23: 0 | O23: 8 | P23: 10 | Q23: -0.109 | R23: 0.106 | S23: 0.332 | T23: 0.117
A24: Poland | B24: Łódź | C24: 51.46175 | D24: 19.2829 | E24: 2004-2013 | F24: 10 | G24: 10 | H24: =G24*100/F24 -> 100 | I24: 20 | J24: 6 | K24: -1.53 | L24: 0.51 | M24: 0.017 | N24: 0.532 | O24: 130 | P24: 117 | Q24: -20.82 | R24: 11.43 | S24: 0.106 | T24: 0.293
A25: Belgium | B25: DeHaan | C25: 51.266667 | D25: 3.016667 | E25: 2005-2007,2009-2013 | F25: 8 | G25: 1 | H25: =G25*100/F25 -> 12.5 | I25: 0.125 | J25: 0.3535533906 | K25: -0.002 | L25: 0.05 | M25: 0.967 | N25: 0 | O25: 0.5 | P25: 1.414213562 | Q25: -0.008 | R25: 0.199 | S25: 0.967 | T25: 0
A26: Poland | B26: Lublin | C26: 51.24365 | D26: 22.53997 | E26: 2004-2013 | F26: 10 | G26: 10 | H26: =G26*100/F26 -> 100 | I26: 30 | J26: 6 | K26: -1.23 | L26: 0.571 | M26: 0.063 | N26: 0.367 | O26: 311 | P26: 224 | Q26: -44.325 | R26: 20.65 | S26: 0.064 | T26: 0.366
A27: Belgium | B27: Antwerpen | C27: 51.231944 | D27: 4.411111 | E27: 2012.2013 | F27: 2 | G27: 2 | H27: =G27*100/F27 -> 100 | I27: 1 | J27: 1.414213562 | O27: 3 | P27: 4.242640687
A28: Poland | B28: Wrocław | C28: 51.1164 | D28: 17.0278 | E28: 2004 -2013 | F28: 10 | G28: 10 | H28: =G28*100/F28 -> 100 | I28: 18 | J28: 6 | K28: -0.52 | L28: 0.68 | M28: 0.462 | N28: 0.069 | O28: 133 | P28: 113 | Q28: -20.38 | R28: 11.07 | S28: 0.103 | T28: 0.297
A29: Belgium | B29: Genk | C29: 50.95 | D29: 5.5 | E29: 2004,2011,2012,2013 | F29: 4 | G29: 3 | H29: =G29*100/F29 -> 75 | I29: 9.25 | J29: 6.291528696 | O29: 5 | P29: 3.464101615
A30: Belgium | B30: Brussels | C30: 50.833333 | D30: 4.35 | E30: 2004-2013 | F30: 10 | G30: 7 | H30: =G30*100/F30 -> 70 | I30: 1.6 | J30: 1.173787791 | K30: 0.073 | L30: 0.135 | M30: 0.604 | N30: 0.035 | O30: 2.9 | P30: 2.998147576 | Q30: 0.236 | R30: 0.34 | S30: 0.507 | T30: 0.057
A31: Czech Republic | B31: Liberec | C31: 50.75 | D31: 15.066667 | E31: 2004-2013 | F31: 10 | G31: 10 | H31: =G31*100/F31 -> 100 | I31: 10.9 | J31: 7.56 | K31: -0.418 | L31: 0.869 | M31: 0.643 | N31: 0.028 | O31: 58.5 | P31: 58.7 | Q31: -3.63 | R31: 6.349 | S31: 0.583 | T31: 0.039
A32: Czech Republic | B32: Usti nad Labem | C32: 50.661111 | D32: 14.033056 | E32: 2010-2013 | F32: 4 | G32: 4 | H32: =G32*100/F32 -> 100 | I32: 12.25 | J32: 2.36 | O32: 59.75 | P32: 60.01
A33: Czech Republic | B33: Karlovy Vary | C33: 50.216667 | D33: 12.866667 | E33: 2005,2006,2007,2009,2010,2011,2013 | F33: 8 | G33: 8 | H33: =G33*100/F33 -> 100 | I33: 11.25 | J33: 4.03 | K33: -0.921 | L33: 0.424 | M33: 0.073 | N33: 0.44 | O33: 46.5 | P33: 37.49 | Q33: -4.628 | R33: 4.928 | S33: 0.384 | T33: 0.128
A34: Czech Republic | B34: Zlate Hory | C34: 50.201944 | D34: 17.390833 | E34: 2004,2006,2009-2013 | F34: 7 | G34: 7 | H34: =G34*100/F34 -> 100 | I34: 31.86 | J34: 8.5 | O34: 334 | P34: 150.2
A35: Belgium | B35: Marche-en-Famenne | C35: 50.2 | D35: 5.333333 | E35: 2012.2013 | F35: 2 | G35: 1 | H35: =G35*100/F35 -> 50 | I35: 1 | J35: 1.414213562 | O35: 3 | P35: 4.242640687
A36: Poland | B36: Sosnowiec | C36: 50.175 | D36: 19.082 | E36: 2004-2013 | F36: 10 | G36: 10 | H36: =G36*100/F36 -> 100 | I36: 33 | J36: 10 | K36: -1.62 | L36: 0.95 | M36: 0.128 | N36: 0.265 | O36: 398 | P36: 430 | Q36: -72.26 | R36: 34.64 | S36: 0.07 | T36: 0.352
A37: Czech Republic | B37: Praha | C37: 50.083333 | D37: 14.416667 | E37: 2004-2013 | F37: 10 | G37: 10 | H37: =G37*100/F37 -> 100 | I37: 14.9 | J37: 8.23 | K37: -1.57 | L37: 0.728 | M37: 0.063 | N37: 0.368 | O37: 141.1 | P37: 139.5 | Q37: -23.327 | R37: 13.143 | S37: 0.144 | T37: 0.283
A38: Poland | B38: Kraków | C38: 50.06363 | D38: 19.95583 | E38: 2004-2013 | F38: 10 | G38: 10 | H38: =G38*100/F38 -> 100 | I38: 27 | J38: 9 | K38: -1.87 | L38: 0.82 | M38: 0.05 | N38: 0.391 | O38: 177 | P38: 124 | Q38: -1.12 | R38: 14.43 | S38: 0.94 | T38: 0
A39: Poland | B39: Rzeszów | C39: 50.0145 | D39: 22.0057 | E39: 2004,2005,2006,2008-2013 | F39: 9 | G39: 9 | H39: =G39*100/F39 -> 100 | I39: 26.33333333 | J39: 10.17349497 | K39: 1.925 | L39: 0.974 | M39: 0.089 | N39: 0.358 | O39: 258.5844444 | P39: 116.9630257 | Q39: 3.212 | R39: 13.924 | S39: 0.824 | T39: 0.008
A40: Czech Republic | B40: Usti nad Orlici | C40: 49.966667 | D40: 16.4 | E40: 2004-2010, 2013 | F40: 8 | G40: 8 | H40: =G40*100/F40 -> 100 | I40: 22.75 | J40: 10.9 | K40: -2.529 | L40: 0.991 | M40: 0.043 | N40: 0.52 | O40: 328.38 | P40: 193.52 | Q40: -41.601 | R40: 21.078 | S40: 0.096 | T40: 0.394
A41: Czech Republic | B41: Karvina | C41: 49.85 | D41: 18.533333 | E41: 2006,2009-2013 | F41: 6 | G41: 6 | H41: =G41*100/F41 -> 100 | I41: 34.83 | J41: 9.62 | O41: 375.17 | P41: 273.73
A42: Czech Republic | B42: Plzen | C42: 49.744444 | D42: 13.374167 | E42: 2005-2013 | F42: 9 | G42: 9 | H42: =G42*100/F42 -> 100 | I42: 35.22 | J42: 13.68 | K42: -3.833 | L42: 1.211 | M42: 0.016 | N42: 0.589 | O42: 328.22 | P42: 289.68 | Q42: -73.567 | R42: 28.727 | S42: 0.038 | T42: 0.484
A43: Czech Republic | B43: Trinec | C43: 49.683333 | D43: 18.65 | E43: 2005-2007, 2009-2013 | F43: 8 | G43: 8 | H43: =G43*100/F43 -> 100 | I43: 25.5 | J43: 11.41 | K43: -1.673 | L43: 1.454 | M43: 0.294 | N43: 0.181 | O43: 143.88 | P43: 128.94 | Q43: -1.883 | R43: 18.134 | S43: 0.921 | T43: 0.002
A44: Czech Republic | B44: Havlickuv Brod | C44: 49.616667 | D44: 15.566667 | E44: 2005-2013 | F44: 9 | G44: 9 | H44: =G44*100/F44 -> 100 | I44: 23.78 | J44: 7.21 | K44: -0.85 | L44: 0.941 | M44: 0.397 | N44: 0.104 | O44: 340.89 | P44: 258.39 | Q44: -41.883 | R44: 31.954 | S44: 0.231 | T44: 0.197
A45: Ukraine | B45: Vinnitsa | C45: 49.227658 | D45: 28.444786 | E45: 2009-2013 | F45: 5 | G45: 5 | H45: =G45*100/F45 -> 100 | I45: 54 | J45: 11 | O45: 1252 | P45: 1110
A46: Czech Republic | B46: Brno | C46: 49.20555 | D46: 16.627778 | E46: 2004-2013 | F46: 10 | G46: 10 | H46: =G46*100/F46 -> 100 | I46: 34.7 | J46: 7.71 | K46: -1.424 | L46: 0.783 | M46: 0.106 | N46: 0.293 | O46: 813.7 | P46: 583.62 | Q46: -6.236 | R46: 65.007 | S46: 0.926 | T46: 0.001
A47: Slovakia | B47: Banská Bystrica | C47: 48.74186 | D47: 19.15935 | E47: 2005-2013 | F47: 9 | G47: 9 | H47: =G47*100/F47 -> 100 | I47: 43 | J47: 11 | K47: 2.43 | L47: 1.15 | M47: 0.07 | N47: 0.389 | O47: 1652 | P47: 1552 | Q47: 200.13 | R47: 200.34 | S47: 0.35 | T47: 0.125
A48: Austria | B48: Allentsteig | C48: 48.69139 | D48: 15.36722 | E48: 2004-2013 | F48: 8 | G48: 8 | H48: =G48*100/F48 -> 100 | I48: 28 | J48: 9 | K48: 1.213 | L48: 1.104 | M48: 0.314 | N48: 0.167 | O48: 484 | P48: 385 | Q48: -67.11 | R48: 44.147 | S48: 0.179 | T48: 0.278
A49: Austria | B49: Freistadt | C49: 48.51361 | D49: 14.50667 | E49: 2004-2013 | F49: 10 | G49: 8 | H49: =G49*100/F49 -> 80 | I49: 3 | J49: 3 | K49: 0.6727272727 | L49: 0.2509486135 | M49: 0.02789411959 | N49: 0.4732111994 | O49: 6 | P49: 8 | Q49: 1.551515152 | R49: 0.7798660147 | S49: 0.08184092601 | T49: 0.330989899
A50: Austria | B50: Linz | C50: 48.3 | D50: 14.28333 | E50: 2004-2013 | F50: 8 | G50: 8 | H50: =G50*100/F50 -> 100 | I50: 6 | J50: 4 | K50: -0.854 | L50: 0.47 | M50: 0.119 | N50: 0.355 | O50: 24 | P50: 31 | Q50: -7.344 | R50: 2.963 | S50: 0.048 | T50: 0.506
A51: Austria | B51: Wien | C51: 48.24889 | D51: 16.35611 | E51: 2004-2013 | F51: 10 | G51: 10 | H51: =G51*100/F51 -> 100 | I51: 42 | J51: 6 | K51: 0.303030303 | L51: 0.6587686429 | M51: 0.6577634864 | N51: 0.02576788291 | O51: 987 | P51: 500 | Q51: -83.6230303 | R51: 50.31633528 | S51: 0.135098629 | T51: 0.2566481937
A52: Slovakia | B52: Bratislava | C52: 48.145954 | D52: 17.078751 | E52: 2004-2013 | F52: 10 | G52: 10 | H52: =G52*100/F52 -> 100 | I52: 55 | J52: 4 | K52: 0.84 | L52: 0.39 | M52: 0.06 | N52: 0.37 | O52: 1545 | P52: 567 | Q52: -12.73 | R52: 66.05 | S52: 0.85 | T52: 0.005
A53: Hungary | B53: Miskolc | C53: 48.1 | D53: 20.75 | E53: 2004-2012 | F53: 9 | G53: 9 | H53: =G53*100/F53 -> 100 | I53: 56.11111111 | J53: 4.106228332 | K53: 0.1 | L53: 0.565451545 | M53: 0.8646344799 | N53: 0.004448105437 | O53: 3708.777778 | P53: 1770.100052 | Q53: 373.6 | R53: 199.3526186 | S53: 0.1030604382 | T53: 0.3341022257
A54: Hungary | B54: Salgótarján | C54: 48.0456 | D54: 19.9008 | E54: 2004 -2013 | F54: 10 | G54: 10 | H54: =G54*100/F54 -> 100 | I54: 53.6 | J54: 3.921450979 | K54: 0.7272727273 | L54: 0.3789211887 | M54: 0.09121050788 | N54: 0.3152916448 | O54: 1639.7 | P54: 993.8504303 | Q54: 241.2666667 | R54: 78.69538253 | S54: 0.01544532196 | T54: 0.5402117511
A55: Austria | B55: Vöcklabruck | C55: 48.00222 | D55: 13.65806 | E55: 2005-2013 | F55: 6 | G55: 6 | H55: =G55*100/F55 -> 100 | I55: 6 | J55: 5 | O55: 22 | P55: 25
A56: Hungary | B56: Nyíregyháza | C56: 47.95 | D56: 21.7167 | E56: 2004-2008,2010-2013 | F56: 9 | G56: 9 | H56: =G56*100/F56 -> 100 | I56: 59.88888889 | J56: 1.269295518 | K56: 0.2 | L56: 0.1291492806 | M56: 0.1654076744 | N56: 0.2551724138 | O56: 8632.555556 | P56: 3086.251938 | Q56: 220.472973 | R56: 354.1879364 | S56: 0.5533582564 | T56: 0.05245020484
A57: Hungary | B57: Eger | C57: 47.8997 | D57: 20.3803 | E57: 2005-2013 | F57: 9 | G57: 9 | H57: =G57*100/F57 -> 100 | I57: 56.22222222 | J57: 3.527668415 | K57: 0.3666666667 | L57: 0.4667233526 | M57: 0.4578532246 | N57: 0.08102678571 | O57: 2609.666667 | P57: 1691.549585 | Q57: 245.1454545 | R57: 190.9390663 | S57: 0.2351132823 | T57: 0.1708455104
A58: Austria | B58: Salzburg | C58: 47.78333 | D58: 13.05 | E58: 2004,2005,2007,2008,2011 | F58: 5 | G58: 5 | H58: =G58*100/F58 -> 100 | I58: 5 | J58: 3 | O58: 10 | P58: 4
A59: Austria | B59: Rosalia | C59: 47.70306 | D59: 16.30333 | E59: 2004-2009 | F59: 6 | G59: 6 | H59: =G59*100/F59 -> 100 | I59: 45 | J59: 2 | O59: 1193 | P59: 600
A60: Hungary | B60: Győr | C60: 47.6667 | D60: 17.6 | E60: 2004-2013 | F60: 10 | G60: 10 | H60: =G60*100/F60 -> 100 | I60: 58.9 | J60: 2.514402955 | K60: 0.5393939394 | L60: 0.2232574601 | M60: 0.04211094069 | N60: 0.4218458753 | O60: 3721.2 | P60: 1604.827357 | Q60: 271.0424242 | R60: 161.0498603 | S60: 0.1308797694 | T60: 0.2614745037
A61: Switzerland | B61: Muensterlingen | C61: 47.616 | D61: 9.233 | E61: 2004-2013 | F61: 10 | G61: 10 | H61: =G61*100/F61 -> 100 | I61: 7 | J61: 4 | K61: 0.545 | L61: 0.379 | M61: 0.189 | N61: 0.21 | O61: 21 | P61: 14 | Q61: 1.879 | R61: 1.48 | S61: 0.24 | T61: 0.168
A62: Hungary | B62: Debrecen | C62: 47.5333 | D62: 21.5833 | E62: 2004-2013 | F62: 10 | G62: 10 | H62: =G62*100/F62 -> 100 | I62: 59.5 | J62: 2.013840996 | K62: -0.1515151515 | L62: 0.2289834605 | M62: 0.5267678998 | N62: 0.05188875052 | O62: 6727 | P62: 3565.773907 | Q62: 562.5939394 | R62: 365.8126216 | S62: 0.1626239483 | T62: 0.2281885941
A63: Switzerland | B63: Basel | C63: 47.529 | D63: 7.566 | E63: 2004-2013 | F63: 10 | G63: 10 | H63: =G63*100/F63 -> 100 | I63: 13 | J63: 6 | K63: -0.836 | L63: 0.638 | M63: 0.226 | N63: 0.177 | O63: 53 | P63: 27 | Q63: -2.558 | R63: 3.047 | S63: 0.425 | T63: 0.081
A64: Austria | B64: Woergl | C64: 47.51111 | D64: 12.07861 | E64: 2004-2013 | F64: 8 | G64: 8 | H64: =G64*100/F64 -> 100 | I64: 2 | J64: 2 | K64: 0.061 | L64: 0.238 | M64: 0.807 | N64: 0.011 | O64: 7 | P64: 10 | Q64: -0.272 | R64: 1.371 | S64: 0.849 | T64: 0.007
A65: Austria | B65: Oberpullendorf | C65: 47.50333 | D65: 16.50444 | E65: 2004-2013 | F65: 6 | G65: 6 | H65: =G65*100/F65 -> 100 | I65: 44 | J65: 7 | O65: 834 | P65: 461
A66: Hungary | B66: Budapest | C66: 47.5 | D66: 19.0667 | E66: 2004-2013 | F66: 10 | G66: 10 | H66: =G66*100/F66 -> 100 | I66: 59.3 | J66: 2.263232693 | K66: 0.5515151515 | L66: 0.1784022549 | M66: 0.01485770273 | N66: 0.5443370801 | O66: 4148.9 | P66: 2917.191627 | Q66: 331.8363636 | R66: 319.8142091 | S66: 0.3298021505 | T66: 0.1186122307
A67: Austria | B67: Reutte | C67: 47.46667 | D67: 10.71667 | E67: 2004-2012 | F67: 8 | G67: 8 | H67: =G67*100/F67 -> 100 | I67: 3 | J67: 2 | K67: -0.305 | L67: 0.228 | M67: 0.224 | N67: 0.203 | O67: 9 | P67: 9 | Q67: -0.409 | R67: 1.195 | S67: 0.744 | T67: 0.019
A68: Switzerland | B68: Zurich | C68: 47.366 | D68: 8.549 | E68: 2004-2013 | F68: 10 | G68: 10 | H68: =G68*100/F68 -> 100 | I68: 9 | J68: 4 | K68: 0.255 | L68: 0.448 | M68: 0.586 | N68: 0.039 | O68: 31 | P68: 16 | Q68: 0.582 | R68: 1.916 | S68: 0.77 | T68: 0.011
A69: Austria | B69: St. Veit im Pongau | C69: 47.32639 | D69: 13.14583 | E69: 2005-2011 | F69: 7 | G69: 2 | H69: =G69*100/F69 -> 28.57142857 | I69: 0.3 | J69: 0.5 | O69: 0.3 | P69: 0.5
A70: France | B70: Dijon | C70: =47+19/60+9.21/3600 -> 47.319225 | D70: =5+ 3/60+56.74/3600 -> 5.065761111 | E70: 2004-2013 | F70: 10 | G70: 10 | H70: =G70*100/F70 -> 100 | I70: 25.9 | J70: 7.89444249 | K70: 1.036 | L70: 0.846 | M70: 0.255 | N70: 0.158 | O70: 150.278 | P70: 93.10491129 | Q70: -3.02 | R70: 10.881 | S70: 0.787 | T70: 0.01
A71: Austria | B71: Innsbruck | C71: 47.28 | D71: 11.37861 | E71: 2004-2013 | F71: 10 | G71: 9 | H71: =G71*100/F71 -> 90 | I71: 3 | J71: 2 | K71: -0.1212121212 | L71: 0.2838797195 | M71: 0.680649939 | N71: 0.02228163993 | O71: 5 | P71: 7 | Q71: 0.4060606061 | R71: 0.783636598 | S71: 0.6183586473 | T71: 0.03247321629
A72: France | B72: Besançon | C72: =47+14/60+28.17/3600 -> 47.24115833 | D72: =6+ 1/60+31.97/3600 -> 6.025547222 | E72: 2004-2013 | F72: 10 | G72: 10 | H72: =G72*100/F72 -> 100 | I72: 18 | J72: 8.366600265 | K72: -1.794 | L72: 0.743 | M72: 0.042 | N72: 0.421 | O72: 66.801 | P72: 44.05944128 | Q72: -6.084 | R72: 4.681 | S72: 0.23 | T72: 0.174
A73: Hungary | B73: Szolnok | C73: 47.1667 | D73: 20.2 | E73: 2004-2009,2012,2013 | F73: 9 | G73: 9 | H73: =G73*100/F73 -> 100 | I73: 56.125 | J73: 6.311836952 | K73: 1.279166667 | L73: 0.5209666496 | M73: 0.04376124121 | N73: 0.4627307541 | O73: 4830.625 | P73: 3180.91469 | Q73: 641.0291667 | R73: 286.6728209 | S73: 0.06042454291 | T73: 0.4166736827
A74: Austria | B74: Judenburg | C74: 47.16667 | D74: 14.65 | E74: 2004-2007,2012 | F74: 5 | G74: 5 | H74: =G74*100/F74 -> 100 | I74: 17 | J74: 7 | O74: 58 | P74: 36
A75: Switzerland | B75: Buchs | C75: 47.166 | D75: 9.466 | E75: 2004-2013 | F75: 10 | G75: 9 | H75: =G75*100/F75 -> 90 | I75: 6 | J75: 4 | K75: -0.164 | L75: 0.429 | M75: 0.713 | N75: 0.017 | O75: 17 | P75: 14 | Q75: 0.485 | R75: 1.583 | S75: 0.767 | T75: 0.012
A76: Austria | B76: Zams | C76: 47.15444 | D76: 10.59333 | E76: 2004-2013 | F76: 8 | G76: 7 | H76: =G76*100/F76 -> 87.5 | I76: 2 | J76: 1 | K76: -0.04 | L76: 0.175 | M76: 0.829 | N76: 0.008 | O76: 2 | P76: 2 | Q76: 0.226 | R76: 0.253 | S76: 0.405 | T76: 0.118
A77: Hungary | B77: Veszprém | C77: 47.1 | D77: 17.9164 | E77: 2004-2013 | F77: 10 | G77: 10 | H77: =G77*100/F77 -> 100 | I77: 59.3 | J77: 1.567021236 | K77: 0.3818181818 | L77: 0.1235382855 | M77: 0.01487406276 | N77: 0.5442204854 | O77: 5680.6 | P77: 1815.80158 | Q77: 16.81212121 | R77: 211.9566136 | S77: 0.938727351 | T77: 0.0007858138606
A78: Switzerland | B78: La Chaux-de-Fonds | C78: 47.1 | D78: 6.816 | E78: 2004-2013 | F78: 10 | G78: 10 | H78: =G78*100/F78 -> 100 | I78: 15 | J78: 4 | K78: -0.2 | L78: 0.438 | M78: 0.66 | N78: 0.025 | O78: 70 | P78: 26 | Q78: 0.055 | R78: 2.99 | S78: 0.986 | T78: 4e-05
A79: France | B79: Bourges | C79: =47+ 5/60+4/3600 -> 47.08444444 | D79: =2+23/60+47/3600 -> 2.396388889 | E79: 2009-2013 | F79: 5 | G79: 5 | H79: =G79*100/F79 -> 100 | I79: 17 | J79: 19 | O79: 194 | P79: 234
A80: Austria | B80: Graz | C80: 47.06417 | D80: 15.43333 | E80: 2004-2013 | F80: 9 | G80: 9 | H80: =G80*100/F80 -> 100 | I80: 26 | J80: 7 | K80: 1.279 | L80: 0.757 | M80: 0.135 | N80: 0.29 | O80: 300 | P80: 205 | Q80: -7.57 | R80: 25.482 | S80: 0.775 | T80: 0.012
A81: Switzerland | B81: Luzern | C81: 47.05 | D81: 8.283 | E81: 2004-2013 | F81: 10 | G81: 10 | H81: =G81*100/F81 -> 100 | I81: 6 | J81: 4 | K81: -0.212 | L81: 0.405 | M81: 0.615 | N81: 0.033 | O81: 23 | P81: 16 | Q81: 0.036 | R81: 1.92 | S81: 0.985 | T81: 4e-05
A82: Switzerland | B82: Neuchâtel | C82: 47 | D82: 6.932 | E82: 2004-2013 | F82: 10 | G82: 10 | H82: =G82*100/F82 -> 100 | I82: 15 | J82: 5 | K82: -0.073 | L82: 0.572 | M82: 0.902 | N82: 0.002 | O82: 68 | P82: 29 | Q82: -2.042 | R82: 3.296 | S82: 0.553 | T82: 0.046
A83: France | B83: Nevers | C83: =46+59/60+12.31/3600 -> 46.98675278 | D83: =3+ 9/60+39.75/3600 -> 3.161041667 | E83: 2004-2013 | F83: 10 | G83: 10 | H83: =G83*100/F83 -> 100 | I83: 52.3 | J83: 3.945461528 | K83: -0.03 | L83: 0.461 | M83: 0.949 | N83: 0.001 | O83: 1022.089 | P83: 488.6952316 | Q83: 104.105 | R83: 43.621 | S83: 0.044 | T83: 0.416
A84: Switzerland | B84: Bern | C84: 46.933 | D84: 7.416 | E84: 2004-2013 | F84: 10 | G84: 10 | H84: =G84*100/F84 -> 100 | I84: 14 | J84: 6 | K84: -0.406 | L84: 0.708 | M84: 0.582 | N84: 0.039 | O84: 53 | P84: 32 | Q84: -1.66 | R84: 3.684 | S84: 0.664 | T84: 0.024
A85: Hungary | B85: Kecskemét | C85: 46.9167 | D85: 19.6667 | E85: 2004-2013 | F85: 10 | G85: 10 | H85: =G85*100/F85 -> 100 | I85: 60.3 | J85: 1.33749351 | K85: 0.103030303 | L85: 0.1518783526 | M85: 0.5166731397 | N85: 0.05439488048 | O85: 8291 | P85: 3933.426185 | Q85: -93.9030303 | R85: 458.1238208 | S85: 0.8427123262 | T85: 0.005224306458
A86: Austria | B86: Obergurgl | C86: 46.87861 | D86: 11.0175 | E86: 2005-2013 | F86: 9 | G86: 7 | H86: =G86*100/F86 -> 77.77777778 | I86: 2 | J86: 2 | K86: 0.3 | L86: 0.1864454471 | M86: 0.151640817 | N86: 0.27 | O86: 3 | P86: 4 | Q86: 0.9 | R86: 0.429900936 | S86: 0.07458298306 | T86: 0.3850352113
A87: Hungary | B87: Zalaegerszeg | C87: 46.8333 | D87: 16.8333 | E87: 2004-2009,2010-2013 | F87: 9 | G87: 9 | H87: =G87*100/F87 -> 100 | I87: 60.44444444 | J87: 1.013793755 | K87: 0.04583333333 | L87: 0.119926813 | M87: 0.7136678834 | N87: 0.02043918919 | O87: 5739.333333 | P87: 2123.287192 | Q87: -218.6 | R87: 239.9550226 | S87: 0.3925833299 | T87: 0.1059943791
A88: Austria | B88: Lienz | C88: 46.81667 | D88: 12.76667 | E88: 2004-2013 | F88: 7 | G88: 7 | H88: =G88*100/F88 -> 100 | I88: 7 | J88: 4 | O88: 19 | P88: 12
A89: Italy | B89: Brunico | C89: 46.800003 | D89: 11.93749 | E89: 2004-2013 | F89: 10 | G89: 10 | H89: =G89*100/F89 -> 100 | I89: 7.8 | J89: 5.308274463 | K89: 0.133 | L89: 0.618 | M89: 0.835 | N89: 0.006 | O89: 8.59 | P89: 7.427272567 | Q89: 0.608 | R89: 0.84 | S89: 0.49 | T89: 0.061
A90: Austria | B90: Spittal/Drau | C90: 46.79861 | D90: 13.49722 | E90: 2008-2012 | F90: 5 | G90: 5 | H90: =G90*100/F90 -> 100 | I90: 27 | J90: 12 | O90: 118 | P90: 49
A91: France | B91: Châlon sur saone | C91: =46+46/60+47.71/3600 -> 46.77991944 | D91: =4+50/60+43.05/3600 -> 4.845291667 | E91: 2004-2013 | F91: 10 | G91: 10 | H91: =G91*100/F91 -> 100 | I91: 41.8 | J91: 4.638007235 | K91: -0.994 | L91: 0.412 | M91: 0.042 | N91: 0.421 | O91: 298.845 | P91: 145.6491508 | Q91: -4.832 | R91: 16.919 | S91: 0.782 | T91: 0.01
A92: Hungary | B92: Békéscsaba | C92: 46.65 | D92: 21.0833 | E92: 2004-2007,2009-2013 | F92: 9 | G92: 9 | H92: =G92*100/F92 -> 100 | I92: 57.66666667 | J92: 2.872281323 | K92: -0.04054054054 | L92: 0.3382854178 | M92: 0.9079759572 | N92: 0.002047502048 | O92: 6431.25 | P92: 3414.092819 | Q92: 552.4756757 | R92: 344.107712 | S92: 0.1524120029 | T92: 0.2691379242
A93: Austria | B93: Klagenfurt | C93: 46.63056 | D93: 14.30556 | E93: 2005-2013 | F93: 8 | G93: 8 | H93: =G93*100/F93 -> 100 | I93: 17 | J93: 6 | K93: 0.915 | L93: 0.735 | M93: 0.26 | N93: 0.205 | O93: 109 | P93: 49 | Q93: -1.377 | R93: 6.639 | S93: 0.843 | T93: 0.007
A94: Italy | B94: Silandro | C94: 46.628848 | D94: 10.778768 | E94: 2004-2007,2009-2013 | F94: 9 | G94: 9 | H94: =G94*100/F94 -> 100 | I94: 10.11111111 | J94: 5.395471352 | K94: 0.212 | L94: 0.631 | M94: 0.747 | N94: 0.016 | O94: 11.73555556 | P94: 7.690713737 | Q94: 0.002 | R94: 0.105 | S94: 0.893 | T94: 0.909
A95: Switzerland | B95: Lausanne | C95: 46.516 | D95: 6.633 | E95: 2004-2013 | F95: 10 | G95: 10 | H95: =G95*100/F95 -> 100 | I95: 16 | J95: 5 | K95: -0.09 | L95: 0.563 | M95: 0.876 | N95: 0.003 | O95: 113 | P95: 46 | Q95: -2.51 | R95: 5.355 | S95: 0.652 | T95: 0.027
A96: Italy | B96: Bolzano | C96: 46.499333 | D96: 11.342109 | E96: 2004-2013 | F96: 10 | G96: 10 | H96: =G96*100/F96 -> 100 | I96: 20 | J96: 6.446359869 | K96: 0.861 | L96: 0.689 | M96: 0.247 | N96: 0.163 | O96: 26.643 | P96: 13.96409368 | Q96: 0.162 | R96: 1.63 | S96: 0.923 | T96: 0.001
A97: Italy | B97: Tolmezzo | C97: 46.403487 | D97: 13.017325 | E97: 2006,2011-2013 | F97: 4 | G97: 4 | H97: =G97*100/F97 -> 100 | I97: 28.5 | J97: 5.686240703 | O97: 28.19060363 | P97: 16.17535305
A98: France | B98: Montluçon | C98: =46+20/60+37.15/3600 -> 46.34365278 | D98: =2+36/60+20.24/3600 -> 2.605622222 | E98: 2004-2013 | F98: 10 | G98: 10 | H98: =G98*100/F98 -> 100 | I98: 35.9 | J98: 6.505553183 | K98: 0.636 | L98: 0.726 | M98: 0.406 | N98: 0.088 | O98: 197.77 | P98: 99.0561255 | Q98: 12.024 | R98: 10.751 | S98: 0.296 | T98: 0.135
A99: Hungary | B99: Szekszárd | C99: 46.3333 | D99: 18.7 | E99: 2004-2013 | F99: 10 | G99: 10 | H99: =G99*100/F99 -> 100 | I99: 59.7 | J99: 1.636391694 | K99: 0.0303030303 | L99: 0.1907888029 | M99: 0.8777390363 | N99: 0.003143467874 | O99: 6208.5 | P99: 1933.966922 | Q99: -98.84242424 | R99: 223.1185374 | S99: 0.6694973547 | T99: 0.02394418904
A100: France | B100: Mâcon | C100: =46+18/60+34.81/3600 -> 46.30966944 | D100: =4+49/60+54.6/3600 -> 4.831833333 | E100: 2004-2013 | F100: 10 | G100: 10 | H100: =G100*100/F100 -> 100 | I100: 43.1 | J100: 6.87103421 | K100: -0.721 | L100: 0.761 | M100: 0.371 | N100: 0.101 | O100: 537.316 | P100: 302.8880646 | Q100: -38.14 | R100: 32.699 | S100: 0.277 | T100: 0.145
A101: Switzerland | B101: Visp | C101: 46.283 | D101: 7.866 | E101: 2004-2013 | F101: 9 | G101: 9 | H101: =G101*100/F101 -> 100 | I101: 6 | J101: 3 | K101: -0.117 | L101: 0.384 | M101: 0.77 | N101: 0.013 | O101: 17 | P101: 12 | Q101: 0.5 | R101: 1.669 | S101: 0.773 | T101: 0.013
A102: Hungary | B102: Szeged | C102: 46.2442 | D102: 20.1664 | E102: 2005-2013 | F102: 9 | G102: 9 | H102: =G102*100/F102 -> 100 | I102: 59.44444444 | J102: 2.45515331 | K102: 0.06666666667 | L102: 0.3379051556 | M102: 0.8492039816 | N102: 0.005529953917 | O102: 5204.777778 | P102: 3188.815602 | Q102: -26.61666667 | R102: 439.9833675 | S102: 0.9534525508 | T102: 0.0005225282587
A103: France | B103: Bourg en Bresse | C103: =46+12/60+36/3600 -> 46.21 | D103: =5+13/60+15/3600 -> 5.220833333 | E103: 2006-2013 | F103: 8 | G103: 8 | H103: =G103*100/F103 -> 100 | I103: 38.875 | J103: 6.01040764 | K103: 0.75 | L103: 0.954 | M103: 0.462 | N103: 0.093 | O103: 636.35375 | P103: 276.6801507 | Q103: -9.521 | R103: 45.949 | S103: 0.843 | T103: 0.007
A104: France | B104: Annemasse | C104: =46+11/60+55.74/3600 -> 46.19881667 | D104: =6+14/60+11.04/3600 -> 6.2364 | E104: 2006-2013 | F104: 8 | G104: 8 | H104: =G104*100/F104 -> 100 | I104: 20 | J104: 8.017837257 | K104: -0.357 | L104: 1.328 | M104: 0.797 | N104: 0.012 | O104: 77.70125 | P104: 63.91393442 | Q104: 1.379 | R104: 10.641 | S104: 0.901 | T104: 0.003
A105: Italy | B105: Tn2 | C105: 46.195232 | D105: 11.134904 | E105: 2004,2006,2007,2011 | F105: 4 | G105: 4 | H105: =G105*100/F105 -> 100 | I105: 31.75 | J105: 9.178779875 | O105: 89.075 | P105: 49.84859577
A106: Switzerland | B106: Genève | C106: 46.183 | D106: 6.133 | E106: 2004-2013 | F106: 10 | G106: 10 | H106: =G106*100/F106 -> 100 | I106: 25 | J106: 5 | K106: 0.382 | L106: 0.623 | M106: 0.557 | N106: 0.045 | O106: 232 | P106: 93 | Q106: 0.939 | R106: 10.833 | S106: 0.933 | T106: 0.0009
A107: Italy | B107: So2 | C107: 46.166667 | D107: 10 | E107: 2004,2005,2007,2009-2013 | F107: 8 | G107: 8 | H107: =G107*100/F107 -> 100 | I107: 35.25 | J107: 7.363035088 | K107: 1.513 | L107: 0.681 | M107: 0.068 | N107: 0.451 | O107: 82.4625 | P107: 42.26207139 | Q107: -2.783 | R107: 5.155 | S107: 0.609 | T107: 0.609
A108: Switzerland | B108: Locarno | C108: 46.166 | D108: 8.783 | E108: 2004-2013 | F108: 10 | G108: 10 | H108: =G108*100/F108 -> 100 | I108: 21 | J108: 5 | K108: 0.927 | L108: 0.55 | M108: 0.131 | N108: 0.262 | O108: 255 | P108: 132 | Q108: -3.89 | R108: 15.367 | S108: 0.806 | T108: 0.008
A109: Switzerland | B109: Cadenazzo | C109: 46.159 | D109: 8.931 | E109: 2004-2013 | F109: 10 | G109: 10 | H109: =G109*100/F109 -> 100 | I109: 21 | J109: 7 | K109: 0.734 | L109: 0.776 | M109: 0.354 | N109: 0.108 | O109: 106 | P109: 53 | Q109: 0.509 | R109: 6.185 | S109: 0.936 | T109: 0.0008
A110: Italy | B110: Belluno | C110: 46.142822 | D110: 12.21653 | E110: 2012.2013 | F110: 2 | G110: 2 | H110: =G110*100/F110 -> 100 | I110: 43 | J110: 5.656854249 | O110: 69.085047 | P110: 5.199771941
A111: France | B111: Vichy | C111: =46+ 7/60+25.83/3600 -> 46.12384167 | D111: =3+26/60+3.34/3600 -> 3.434261111 | E111: 2007-2013 | F111: 7 | G111: 7 | H111: =G111*100/F111 -> 100 | I111: 30 | J111: 21 | O111: 319 | P111: 272
A112: Hungary | B112: Pécs | C112: 46.0667 | D112: 18.25 | E112: 2004-2013 | F112: 10 | G112: 10 | H112: =G112*100/F112 -> 100 | I112: 58.5 | J112: 4.249182928 | K112: 0.1151515152 | L112: 0.4945246579 | M112: 0.821722575 | N112: 0.006731934732 | O112: 6300.4 | P112: 2533.524431 | Q112: -60.24242424 | R112: 295.0842447 | S112: 0.8433315926 | T112: 0.005182820002
A113: Slovenia | B113: Ljubljana | C113: 46.066667 | D113: 14.5 | E113: 2006-2010, 2012, 2013 | F113: 7 | G113: 7 | H113: =G113*100/F113 -> 100 | I113: 49 | J113: 4 | O113: 822.5714286 | P113: 287.1166181
A114: Italy | B114: Feltre | C114: 46.017697 | D114: 11.901293 | E114: 2012.2013 | F114: 2 | G114: 2 | H114: =G114*100/F114 -> 100 | I114: 43 | J114: 4.242640687 | O114: 96.7577755 | P114: 31.19864508
A115: Switzerland | B115: Lugano | C115: 46 | D115: 8.949 | E115: 2004-2013 | F115: 8 | G115: 8 | H115: =G115*100/F115 -> 100 | I115: 28 | J115: 6 | K115: -0.548 | L115: 0.898 | M115: 0.564 | N115: 0.058 | O115: 459 | P115: 158 | Q115: -27.21 | R115: 23.947 | S115: 0.299 | T115: 0.177
A116: Italy | B116: Pordenone | C116: 45.963168 | D116: 12.651658 | E116: 2005-2006,2008,2011-2013 | F116: 6 | G116: 6 | H116: =G116*100/F116 -> 100 | I116: 43.5 | J116: 7.918333158 | O116: 172.5733333 | P116: 143.5209825
A117: France | B117: Ambérieu en B | C117: =45+57/60+25.52/3600 -> 45.95708889 | D117: =5+19/60+49.27/3600 -> 5.330352778 | E117: 2006-2013 | F117: 8 | G117: 8 | H117: =G117*100/F117 -> 100 | I117: 44.75 | J117: 9.735795514 | K117: 1.095 | L117: 1.56 | M117: 0.509 | N117: 0.076 | O117: 972 | P117: 653 | Q117: 58.959 | R117: 106.121 | S117: 0.599 | T117: 0.049
A118: France | B118: Annecy | C118: =45+54/60+14.51/3600 -> 45.90403056 | D118: =6+ 7/60+59.17/3600 -> 6.133102778 | E118: 2004-2013 | F118: 10 | G118: 10 | H118: =G118*100/F118 -> 100 | I118: 23.8 | J118: 6.528569692 | K118: -0.982 | L118: 0.679 | M118: 0.186 | N118: 0.2073 | O118: 97.634 | P118: 74.24567106 | Q118: 4.061 | R118: 8.554 | S118: 0.648 | T118: 0.027
A119: Italy | B119: Omegna | C119: 45.879015 | D119: 8.40932 | E119: 2004-2011,2013 | F119: 9 | G119: 9 | H119: =G119*100/F119 -> 100 | I119: 45.11111111 | J119: 4.702245327 | K119: 0.216 | L119: 0.6 | M119: 0.729 | N119: 0.018 | O119: 283.0555556 | P119: 118.3778047 | Q119: 4.687 | R119: 15.168 | S119: 0.766 | T119: 0.013
A120: Switzerland | B120: Mezzana | C120: 45.852 | D120: 8.997 | E120: 2004-2013 | F120: 10 | G120: 10 | H120: =G120*100/F120 -> 100 | I120: 46 | J120: 7 | K120: -0.11 | L120: 0.8 | M120: 0.895 | N120: 0.002 | O120: 1065 | P120: 514 | Q120: -35.321 | R120: 58.733 | S120: 0.564 | T120: 0.043
A121: Serbia | B121: Kikinda | C121: 45.841088 | D121: 20.481786 | E121: 2013 | F121: 1 | G121: 1 | H121: =G121*100/F121 -> 100 | I121: 60 | O121: 7531
A122: Croatia | B122: Zagreb | C122: 45.831969 | D122: 15.981537 | E122: 2004-2013 | F122: 10 | G122: 10 | H122: =G122*100/F122 -> 100 | I122: 57 | J122: 4 | K122: 0.13 | L122: 0.48 | M122: 0.79 | N122: 0.009 | O122: 3297 | P122: 1017 | Q122: 138.32 | R122: 108.2 | S122: 0.24 | T122: 0.169
A123: Italy | B123: Monfalcone | C123: 45.805178 | D123: 13.529739 | E123: 2008-2010 | F123: 3 | G123: 3 | H123: =G123*100/F123 -> 100 | I123: 52.33333333 | J123: 6.027713773 | O123: 480.3097254 | P123: 281.2474702
A124: Italy | B124: Latisana | C124: 45.782193 | D124: 12.993552 | E124: 2006,2008-2010 | F124: 4 | G124: 4 | H124: =G124*100/F124 -> 100 | I124: 46.5 | J124: 10.2794293 | O124: 293.0234667 | P124: 148.1812475
A125: Serbia | B125: Sombor | C125: 45.779163 | D125: 19.110526 | E125: 2008, 2009, 2010, 2012, 2013 | F125: 5 | G125: 5 | H125: =G125*100/F125 -> 100 | I125: 59 | J125: 3 | O125: 8972 | P125: 2120
A126: France | B126: Clermont-Ferrand | C126: =45+45/60+31.53/3600 -> 45.75875833 | D126: =3+ 5/60+38.57/3600 -> 3.094047222 | E126: 2004-2013 | F126: 10 | G126: 10 | H126: =G126*100/F126 -> 100 | I126: 27.6 | J126: 7.167829363 | K126: 0.606 | L126: 0.809 | M126: 0.475 | N126: 0.066 | O126: 206.152 | P126: 90.99022411 | Q126: -4.409 | R126: 10.51 | S126: 0.68 | T126: 0.022
A127: Romania | B127: Timisoara | C127: =45+44/60 + 51.64/3600 -> 45.74767778 | D127: =21 + 13/60 + 53.42/3600 -> 21.23150556 | E127: 2004-2010 | F127: 8 | G127: 8 | H127: =G127*100/F127 -> 100 | I127: 59.5 | J127: 2.5 | K127: -0.4285714286 | L127: 0.482341229 | M127: 0.4149542701 | N127: 0.1363636364 | O127: 4923 | P127: 1368.704 | Q127: 253.1428571 | R127: 259.7501743 | S127: 0.3745360777 | T127: 0.1596317551
A128: Italy | B128: Al5 | C128: 45.746622 | D128: 7.353499 | E128: 2008,2012,2013 | F128: 3 | G128: 3 | H128: =G128*100/F128 -> 100 | I128: 55 | J128: 26.59428604 | O128: 758.6333333 | P128: 104.3621739
A129: France | B129: Genas | C129: =45+44/60+13.88/3600 -> 45.73718889 | D129: =5+ 0/60+51.66/3600 -> 5.01435 | E129: 2008-2013 | F129: 6 | G129: 6 | H129: =G129*100/F129 -> 100 | I129: 28 | J129: 27 | O129: 1249 | P129: 1287
A130: France | B130: Lyon | C130: =45+43/60+38.9/3600 -> 45.72747222 | D130: =4+49/60+29.48/3600 -> 4.824855556 | E130: 2004-2013 | F130: 10 | G130: 10 | H130: =G130*100/F130 -> 100 | I130: 51.6 | J130: 3.65756446 | K130: -0.412 | L130: 0.401 | M130: 0.335 | N130: 0.116 | O130: 1595.707 | P130: 781.7621272 | Q130: -115.982 | R130: 81.567 | S130: 0.193 | T130: 0.202
A131: Italy | B131: Vertemate con Minoprio | C131: 45.7253 | D131: 9.074 | E131: 2004-2013 | F131: 10 | G131: 10 | H131: =G131*100/F131 -> 100 | I131: 54.3 | J131: 4.347413024 | K131: -1.109 | L131: 0.322 | M131: 0.009 | N131: 0.597 | O131: 835.196 | P131: 406.3723948 | Q131: -11.498 | R131: 21.608 | S131: 0.001 | T131: 0.793
A132: Italy | B132: Lc1 | C132: 45.7 | D132: 9.316667 | E132: 2004,2006,2009-2013 | F132: 7 | G132: 7 | H132: =G132*100/F132 -> 100 | I132: 55.14285714 | J132: 3.933978962 | O132: 1290.685714 | P132: 608.0327141
A133: Italy | B133: Lignano | C133: 45.667795 | D133: 13.105001 | E133: 2011-2013 | F133: 3 | G133: 3 | H133: =G133*100/F133 -> 100 | I133: 49 | J133: 6.557438524 | O133: 166.5066667 | P133: 75.70380528
A134: Italy | B134: Treviso | C134: 45.666816 | D134: 12.245724 | E134: 2012.2013 | F134: 2 | G134: 2 | H134: =G134*100/F134 -> 100 | I134: 44 | J134: 7.071067812 | O134: 96.95129 | P134: 9.57853634
A135: France | B135: Angoulême | C135: =45+38/60+57.57/3600 -> 45.649325 | D135: =0+9/60+52.26/3600 -> 0.1645166667 | E135: 2007-2013 | F135: 7 | G135: 7 | H135: =G135*100/F135 -> 100 | I135: 24 | J135: 16 | O135: 123 | P135: 103
A136: Italy | B136: Trieste | C136: 45.64902 | D136: 13.774907 | E136: 2005,2006,2008,2009,2011-2013 | F136: 7 | G136: 7 | H136: =G136*100/F136 -> 100 | I136: 40 | J136: 7.461009762 | O136: 221.8667845 | P136: 118.3058653
A137: Italy | B137: Va3 | C137: 45.6231 | D137: 8.846682 | E137: 2004-2013 | F137: 10 | G137: 10 | H137: =G137*100/F137 -> 100 | I137: 56.2 | J137: 2.859681412 | K137: -0.194 | L137: 0.327 | M137: 0.569 | N137: 0.042 | O137: 6133.33 | P137: 2609.03526 | Q137: -54.919 | R137: 304.05 | S137: 0.861 | T137: 0.004
A138: Italy | B138: Ao2 | C138: 45.607708 | D138: 7.358739 | E138: 2004-2006, 2008-2010 | F138: 6 | G138: 6 | H138: =G138*100/F138 -> 100 | I138: 27.5 | J138: 13.0344927 | O138: 53.28333333 | P138: 33.77113659
A139: Italy | B139: Mi6 | C139: 45.595736 | D139: 8.923045 | E139: 2004-2013 | F139: 10 | G139: 10 | H139: =G139*100/F139 -> 100 | I139: 58.7 | J139: 2.496664441 | K139: 0.067 | L139: 0.291 | M139: 0.824 | N139: 0.007 | O139: 4168.3 | P139: 1677.925574 | Q139: -433.667 | R139: 122 | S139: 0.007 | T139: 0.612
A140: France | B140: Bourgouin Jallieu | C140: =45+35/60+24.02/3600 -> 45.59000556 | D140: =5+16/60+38.59/3600 -> 5.277386111 | E140: 2004-2013 | F140: 10 | G140: 10 | H140: =G140*100/F140 -> 100 | I140: 52.8 | J140: 5.827139569 | K140: -1.042 | L140: 0.572 | M140: 0.106 | N140: 0.293 | O140: 1910.675 | P140: 763.0203456 | Q140: -135.489 | R140: 75.129 | S140: 0.109 | T140: 0.289
A141: France | B141: Chambery | C141: =45+33/60+51.22/3600 -> 45.56422778 | D141: =5+54/60+26.72/3600 -> 5.907422222 | E141: 2004-2013 | F141: 10 | G141: 10 | H141: =G141*100/F141 -> 100 | I141: 32.7 | J141: 4.877385456 | K141: 0.345 | L141: 0.556 | M141: 0.552 | N141: 0.046 | O141: 217.965 | P141: 79.96857372 | Q141: -5.69 | R141: 9.124 | S141: 0.55 | T141: 0.046
A142: Italy | B142: Mi8 | C142: 45.547753 | D142: 9.045225 | E142: 2004-2013 | F142: 10 | G142: 10 | H142: =G142*100/F142 -> 100 | I142: 59.7 | J142: 3.128720008 | K142: -0.552 | L142: 0.309 | M142: 0.112 | N142: 0.285 | O142: 4287.7 | P142: 1632.448131 | Q142: -441.145 | R142: 109.605 | S142: 0.04 | T142: 0.669
A143: Italy | B143: Vicenza | C143: 45.546014 | D143: 11.540557 | E143: 2012.2013 | F143: 2 | G143: 2 | H143: =G143*100/F143 -> 100 | I143: 39.5 | J143: 0.7071067812 | O143: 198.8194368 | P143: 1.6758
A144: Slovenia | B144: Koper | C144: 45.544444 | D144: 13.727222 | E144: 2005,2006,2008,2010 | F144: 4 | G144: 4 | H144: =G144*100/F144 -> 100 | I144: 38.75 | J144: 3.403429643 | O144: 408.75 | P144: 165.4818721
A145: Italy | B145: To2 | C145: 45.5 | D145: 7.666667 | E145: 2005-2009,2011 | F145: 6 | G145: 6 | H145: =G145*100/F145 -> 100 | I145: 37 | J145: 6.449806199 | O145: 145.9 | P145: 56.8645408
A146: Italy | B146: Mi7 | C146: 45.471158 | D146: 8.892675 | E146: 2004-2013 | F146: 10 | G146: 10 | H146: =G146*100/F146 -> 100 | I146: 58.7 | J146: 3.802046233 | K146: -0.661 | L146: 0.378 | M146: 0.118 | N146: 0.277 | O146: 5647.7 | P146: 2111.1534 | Q146: -413.182 | R146: 198.587 | S146: 0.071 | T146: 0.351
A147: Italy | B147: Novara | C147: 45.448631 | D147: 8.619766 | E147: 2004-2013 | F147: 10 | G147: 10 | H147: =G147*100/F147 -> 100 | I147: 54.2 | J147: 7.842901957 | K147: -0.751 | L147: 0.876 | M147: 0.416 | N147: 0.084 | O147: 1364.985 | P147: 585.8565287 | Q147: -51.734 | R147: 65.923 | S147: 0.455 | T147: 0.071
A148: Italy | B148: Mi3 | C148: 45.444792 | D148: 9.163294 | E148: 2011-2013 | F148: 3 | G148: 3 | H148: =G148*100/F148 -> 100 | I148: 52.66666667 | J148: 4.163331999 | O148: 1685.266667 | P148: 555.1584489
A149: Italy | B149: Venezia | C149: 45.440655 | D149: 12.322004 | E149: 2012.2013 | F149: 2 | G149: 2 | H149: =G149*100/F149 -> 100 | I149: 50 | J149: 1.414213562 | O149: 284.8891501 | P149: 76.34826463
A150: Italy | B150: Verona | C150: 45.438969 | D150: 10.992188 | E150: 2012.2013 | F150: 2 | G150: 2 | H150: =G150*100/F150 -> 100 | I150: 47.5 | J150: 0.7071067812 | O150: 279.2438383 | P150: 190.1986423
A151: France | B151: Saint-Etienne | C151: =45+25/60+20.05/3600 -> 45.42223611 | D151: =4+23/60+37.42/3600 -> 4.393727778 | E151: 2004-2013 | F151: 10 | G151: 10 | H151: =G151*100/F151 -> 100 | I151: 38 | J151: 7.378647874 | K151: 0.848 | L151: 0.808 | M151: 0.324 | N151: 0.121 | O151: 241.567 | P151: 71.06505424 | Q151: -15.627 | R151: 6.191 | S151: 0.036 | T151: 0.443
A152: Italy | B152: Pd1 | C152: 45.4 | D152: 11.883333 | E152: 2004-2013 | F152: 10 | G152: 10 | H152: =G152*100/F152 -> 100 | I152: 23.3 | J152: 13.95269787 | K152: 3.085 | L152: 1.21 | M152: 0.034 | N152: 0.48 | O152: 79.58 | P152: 62.26159508 | Q152: 10.08 | R152: 6.337 | S152: 0.15 | T152: 0.24
A153: Serbia | B153: Zrenjanin | C153: 45.381822 | D153: 20.395541 | E153: 2008-2013 | F153: 6 | G153: 6 | H153: =G153*100/F153 -> 100 | I153: 61 | J153: 1 | O153: 5033 | P153: 1401
A154: France | B154: Roussillon | C154: =45+22/60+14.27/3600 -> 45.37063056 | D154: =4+48/60+43.69/3600 -> 4.812136111 | E154: 2004-2013 | F154: 10 | G154: 10 | H154: =G154*100/F154 -> 100 | I154: 58.6 | J154: 1.712697677 | K154: -0.097 | L154: 0.197 | M154: 0.639 | N154: 0.029 | O154: 5293.9 | P154: 1160.590739 | Q154: -141.83 | R154: 125.907 | S154: 0.293 | T154: 0.137
A155: Italy | B155: Vercelli | C155: 45.326668 | D155: 8.421543 | E155: 2011-2013 | F155: 3 | G155: 3 | H155: =G155*100/F155 -> 100 | I155: 50.33333333 | J155: 8.020806277 | O155: 604.08 | P155: 434.1910064
A156: Serbia | B156: Novi Sad | C156: 45.245717 | D156: 19.853797 | E156: 2004-2013 | F156: 10 | G156: 10 | H156: =G156*100/F156 -> 100 | I156: 58 | J156: 3 | K156: -0.066666667 | L156: 0.376855678 | M156: 0.863982 | N156: 0.003896564 | O156: 6025 | P156: 1379 | Q156: 142.933 | R156: 152.9123126 | S156: 0.377 | T156: 0.098
A157: France | B157: Grenoble | C157: =45+11/60+36.69/3600 -> 45.193525 | D157: =5+44/60+8.26/3600 -> 5.735627778 | E157: 2004-2013 | F157: 10 | G157: 10 | H157: =G157*100/F157 -> 100 | I157: 42.9 | J157: 4.383048153 | K157: -0.115 | L157: 0.51 | M157: 0.827 | N157: 0.006 | O157: 465.829 | P157: 180.2289605 | Q157: 11.394 | R157: 20.661 | S157: 0.596 | T157: 0.037
A158: Italy | B158: Pv2 | C158: 45.188706 | D158: 9.148986 | E158: 2004,2005,2007,2009-2013 | F158: 8 | G158: 8 | H158: =G158*100/F158 -> 100 | I158: 57.125 | J158: 4.580626907 | K158: -0.893 | L158: 0.44 | M158: 0.089 | N158: 0.407 | O158: 1459.4375 | P158: 673.0152937 | Q158: -100.696 | R158: 73.279 | S158: 0.219 | T158: 0.239
A159: Italy | B159: Al4 | C159: 45.134167 | D159: 8.458333 | E159: 2008 | F159: 1 | G159: 1 | H159: =G159*100/F159 -> 100 | I159: 53 | O159: 721.6
A160: Italy | B160: Rovigo | C160: 45.06988 | D160: 11.786492 | E160: 2012.2013 | F160: 2 | G160: 2 | H160: =G160*100/F160 -> 100 | I160: 44 | J160: 2.828427125 | O160: 128.3052849 | P160: 36.02579918
A161: Italy | B161: Torino | C161: 45.06505 | D161: 7.68166 | E161: 2006-2011 | F161: 6 | G161: 6 | H161: =G161*100/F161 -> 100 | I161: 39.83333333 | J161: 6.274286148 | O161: 165.7016667 | P161: 42.61300619
A162: Italy | B162: Piacenza | C162: 45.058184 | D162: 9.678974 | E162: 2004-2013 | F162: 10 | G162: 10 | H162: =G162*100/F162 -> 100 | I162: 56.1 | J162: 4.040077007 | K162: 0.552 | L162: 0.43 | M162: 0.235 | N162: 0.171 | O162: 1252.02 | P162: 527.6942945 | Q162: -56.847 | R162: 58.252 | S162: 0.358 | T162: 0.106
A163: Serbia | B163: Sremska Mitrovica | C163: 44.971428 | D163: 19.612838 | E163: 2009,2012,2013 | F163: 3 | G163: 3 | H163: =G163*100/F163 -> 100 | I163: 60 | J163: 1 | O163: 6013 | P163: 959
A164: France | B164: Valence | C164: =44+56/60+5.34/3600 -> 44.93481667 | D164: =4+53/60+34.89/3600 -> 4.893025 | E164: 2004-2013 | F164: 10 | G164: 10 | H164: =G164*100/F164 -> 100 | I164: 52.2 | J164: 7.627435859 | K164: 1.139 | L164: 0.794 | M164: 0.189 | N164: 0.205 | O164: 2312.788 | P164: 954.8548568 | Q164: 79.088 | R164: 107.947 | S164: 0.485 | T164: 0.063
A165: Italy | B165: Alessandria | C165: 44.913531 | D165: 8.616041 | E165: 2011-2013 | F165: 3 | G165: 3 | H165: =G165*100/F165 -> 100 | I165: 56.66666667 | J165: 3.785938897 | O165: 1387.5 | P165: 470.7602044
A166: Italy | B166: Al3 | C166: 44.907742 | D166: 8.611162 | E166: 2008 | F166: 1 | G166: 1 | H166: =G166*100/F166 -> 100 | I166: 50 | O166: 534.5
A167: Spain | B167: Tortona | C167: 44.897736 | D167: 8.864837 | E167: 2005 | F167: 1 | G167: 1 | H167: =G167*100/F167 -> 100 | I167: 2 | O167: 0.96
A168: Italy | B168: Al2 | C168: 44.895449 | D168: 8.86336 | E168: 2004,2008,2012-2013 | F168: 4 | G168: 4 | H168: =G168*100/F168 -> 100 | I168: 59 | J168: 4 | O168: 899.3 | P168: 410.2798638
A169: Italy | B169: Ferrara | C169: 44.835222 | D169: 11.626138 | E169: 2004-2012 | F169: 9 | G169: 9 | H169: =G169*100/F169 -> 100 | I169: 42.11111111 | J169: 8.022537698 | K169: 1.133 | L169: 1.021 | M169: 0.304 | N169: 0.15 | O169: 199.1333333 | P169: 119.453244 | Q169: -20.283 | R169: 14.59 | S169: 0.207 | T169: 0.216
A170: Italy | B170: Pr1 | C170: 44.804167 | D170: 10.316667 | E170: 2005-2013 | F170: 9 | G170: 9 | H170: =G170*100/F170 -> 100 | I170: 38.22222222 | J170: 7.18988487 | K170: 1.367 | L170: 0.847 | M170: 0.151 | N170: 0.271 | O170: 402.1555556 | P170: 237.1413614 | Q170: 40.1 | R170: 28.981 | S170: 0.209 | T170: 0.215
A171: Italy | B171: Parma | C171: 44.801924 | D171: 10.313539 | E171: 2008,2011,2013 | F171: 3 | G171: 3 | H171: =G171*100/F171 -> 100 | I171: 57.33333333 | J171: 2.081665999 | O171: 509.8333333 | P171: 284.63363
A172: Italy | B172: Ao3 | C172: 44.759108 | D172: 8.792989 | E172: 2004,2006,2008-2010 | F172: 5 | G172: 5 | H172: =G172*100/F172 -> 100 | I172: 18 | J172: 4.062019202 | O172: 24.36 | P172: 13.0344927
A173: France | B173: Coux | C173: =44+43/60+58.28/3600 -> 44.73285556 | D173: =4+37/60+12.4/3600 -> 4.620111111 | E173: 2006-2013 | F173: 8 | G173: 8 | H173: =G173*100/F173 -> 100 | I173: 46.375 | J173: 5.853875395 | K173: 1.417 | L173: 0.786 | M173: 0.121 | N173: 0.351 | O173: 611.4525 | P173: 310.6356895 | Q173: 18.107 | R173: 51.249 | S173: 0.736 | T173: 0.02
A174: Italy | B174: Reggio | C174: 44.686753 | D174: 10.665356 | E174: 2004-2012 | F174: 9 | G174: 9 | H174: =G174*100/F174 -> 100 | I174: 42.55555556 | J174: 7.401201104 | K174: 1.8 | L174: 0.762 | M174: 0.05 | N174: 0.444 | O174: 199.3666667 | P174: 76.73262018 | Q174: 1.083 | R174: 10.599 | S174: 0.921 | T174: 0.001
A175: Serbia | B175: Smederevo | C175: 44.665717 | D175: 20.928741 | E175: 2011.2012 | F175: 2 | G175: 2 | H175: =G175*100/F175 -> 100 | I175: 61 | J175: 0 | O175: 4460 | P175: 765
A176: Italy | B176: Modena | C176: 44.650711 | D176: 10.925222 | E176: 2004-2013 | F176: 10 | G176: 10 | H176: =G176*100/F176 -> 100 | I176: 45.4 | J176: 8.461678321 | K176: 2.024 | L176: 0.681 | M176: 0.018 | N176: 0.525 | O176: 164.04 | P176: 53.26863159 | Q176: -4.971 | R176: 5.967 | S176: 0.429 | T176: 0.08
A177: Italy | B177: San Pietro Capofiume | C177: 44.650657 | D177: 11.649665 | E177: 2004-2006, 2008-2012 | F177: 8 | G177: 8 | H177: =G177*100/F177 -> 100 | I177: 40 | J177: 7.191264542 | K177: 0.747 | L177: 0.965 | M177: 0.468 | N177: 0.091 | O177: 182.125 | P177: 101.2382445 | Q177: -6.779 | R177: 13.984 | S177: 0.654 | T177: 0.038
A178: Italy | B178: San Giovanni in Persiceto | C178: 44.640054 | D178: 11.187889 | E178: 2004-2013 | F178: 10 | G178: 10 | H178: =G178*100/F178 -> 100 | I178: 40 | J178: 6.992058988 | K178: -0.533 | L178: 0.794 | M178: 0.521 | N178: 0.053 | O178: 160.34 | P178: 123.1787337 | Q178: -20.005 | R178: 12.525 | S178: 0.149 | T178: 0.242
A179: Italy | B179: Bologna | C179: 44.491441 | D179: 11.36883 | E179: 2005-2013 | F179: 9 | G179: 9 | H179: =G179*100/F179 -> 100 | I179: 32.77777778 | J179: 8.842762263 | K179: 1.567 | L179: 1.067 | M179: 0.186 | N179: 0.235 | O179: 105.3777778 | P179: 87.05884185 | Q179: -11.75 | R179: 11.189 | S179: 0.329 | T179: 0.136
A180: Italy | B180: Ravenna | C180: 44.416097 | D180: 12.205641 | E180: 2004 -2013 | F180: 10 | G180: 10 | H180: =G180*100/F180 -> 100 | I180: 34.1 | J180: 11.33774424 | K180: 0.503 | L180: 1.132 | M180: 0.711 | N180: 0.018 | O180: 95.41 | P180: 69.97955971 | Q180: 6.55 | R180: 7.837 | S180: 0.428 | T180: 0.08
A181: Italy | B181: GE04 | C181: 44.411389 | D181: 8.884722 | E181: 2010-2013 | F181: 4 | G181: 4 | H181: =G181*100/F181 -> 100 | I181: 36.5 | J181: 12.36931688 | O181: 150.74 | P181: 94.39081558
A182: Italy | B182: Ge1 | C182: 44.408094 | D182: 8.969994 | E182: 2004-2005,2007-2013 | F182: 9 | G182: 9 | H182: =G182*100/F182 -> 100 | I182: 29.55555556 | J182: 5.897268671 | K182: -0.237 | L182: 0.72 | M182: 0.725 | N182: 0.015 | O182: 64.82222222 | P182: 36.06174489 | Q182: -4.754 | R182: 4.061 | S182: 0.28 | T182: 0.164
A183: Italy | B183: Cuneo | C183: 44.391957 | D183: 7.546136 | E183: 2004-2011 | F183: 8 | G183: 8 | H183: =G183*100/F183 -> 100 | I183: 30.125 | J183: 13.4635752 | K183: 2.393 | L183: 2.02 | M183: 0.281 | N183: 0.19 | O183: 97.3125 | P183: 109.5706337 | Q183: 27.679 | R183: 14.343 | S183: 0.102 | T183: 0.383
A184: Italy | B184: SV04 | C184: 44.311944 | D184: 8.4775 | E184: 2004,2006,2010-2013 | F184: 6 | G184: 6 | H184: =G184*100/F184 -> 100 | I184: 17 | J184: 11.78134118 | O184: 45.41666667 | P184: 48.12410858
A185: Italy | B185: Faenza | C185: 44.289676 | D185: 11.878634 | E185: 2004,2005,2008-2011,2013 | F185: 7 | G185: 7 | H185: =G185*100/F185 -> 100 | I185: 28.71428571 | J185: 7.387247699 | O185: 137.8857143 | P185: 97.10828026
A186: Italy | B186: Forlì | C186: 44.219583 | D186: 12.033423 | E186: 2004-2013 | F186: 10 | G186: 10 | H186: =G186*100/F186 -> 100 | I186: 28.8 | J186: 9.635582206 | K186: 1.345 | L186: 1.02 | M186: 0.224 | N186: 0.179 | O186: 177.78 | P186: 152.8792174 | Q186: -26.079 | R186: 15.287 | S186: 0.126 | T186: 0.267
A187: France | B187: Bagnols | C187: =44+ 9/60+3.64/3600 -> 44.15101111 | D187: =4+36/60+45.26/3600 -> 4.612572222 | E187: 2008-2013 | F187: 6 | G187: 6 | H187: =G187*100/F187 -> 100 | I187: 27 | J187: 25 | O187: 553 | P187: 607
A188: Italy | B188: Cesena | C188: 44.134625 | D188: 12.259218 | E188: 2004,2005,2006,2008-2011,2013 | F188: 8 | G188: 8 | H188: =G188*100/F188 -> 100 | I188: 26 | J188: 3.338091842 | K188: 0.696 | L188: 0.334 | M188: 0.082 | N188: 0.42 | O188: 160.9125 | P188: 92.04423529 | Q188: -6.585 | R188: 11.799 | S188: 0.597 | T188: 0.049
A189: Italy | B189: SP02 | C189: 44.117705 | D189: 9.836105 | E189: 2004-2013 | F189: 10 | G189: 10 | H189: =G189*100/F189 -> 100 | I189: 16.5 | J189: 8.872554436 | K189: 0.03 | L189: 1.036 | M189: 0.977 | N189: 0 | O189: 29.456 | P189: 29.23340677 | Q189: -2.537 | R189: 3.294 | S189: 0.463 | T189: 0.069
A190: Italy | B190: Rimini | C190: 44.063664 | D190: 12.570039 | E190: 2004-2013 | F190: 10 | G190: 10 | H190: =G190*100/F190 -> 100 | I190: 45.7 | J190: 6.254775953 | K190: 0.455 | L190: 0.713 | M190: 0.541 | N190: 0.048 | O190: 258.02 | P190: 161.5544545 | Q190: -30.919 | R190: 15.376 | S190: 0.079 | T190: 0.336
A191: Italy | B191: Pistoia | C191: 43.936397 | D191: 10.901389 | E191: 2013 | F191: 1 | G191: 1 | H191: =G191*100/F191 -> 100 | I191: 28 | O191: 32.32
A192: France | B192: Avignon | C192: =43+55/60+12.95/3600 -> 43.92026389 | D192: =4+48/60+18.53/3600 -> 4.805147222 | E192: 2004-2013 | F192: 10 | G192: 10 | H192: =G192*100/F192 -> 100 | I192: 45.1 | J192: 6.854844191 | K192: 0.612 | L192: 0.771 | M192: 0.45 | N192: 0.073 | O192: 431.197 | P192: 160.3908304 | Q192: 31.97 | R192: 14.941 | S192: 0.065 | T192: 0.364
A193: Italy | B193: Lido | C193: 43.913654 | D193: 10.22453 | E193: 2005,2009,2012,2013 | F193: 4 | G193: 4 | H193: =G193*100/F193 -> 100 | I193: 27.75 | J193: 4.031128874 | O193: 58.76 | P193: 51.23121965
A194: Italy | B194: Pu1 | C194: 43.9 | D194: 12.883333 | E194: 2005,2008-2011,2013 | F194: 6 | G194: 6 | H194: =G194*100/F194 -> 100 | I194: 33.33333333 | J194: 13.26147302 | O194: 97.68333333 | P194: 96.7115798
A195: Italy | B195: Montecatini | C195: 43.881107 | D195: 10.768558 | E195: 2004,2005,2006,2010,2012 | F195: 5 | G195: 5 | H195: =G195*100/F195 -> 100 | I195: 24.4 | J195: 6.580273551 | O195: 64.096 | P195: 40.81764912
A196: Italy | B196: IM03 | C196: 43.873056 | D196: 8.010278 | E196: 2004-2013 | F196: 10 | G196: 10 | H196: =G196*100/F196 -> 100 | I196: 12.9 | J196: 11.36710654 | K196: -1.8 | L196: 1.165 | M196: 0.161 | N196: 0.23 | O196: 18.312 | P196: 21.14127338 | Q196: -4.069 | R196: 2.006 | S196: 0.077 | T196: 0.34
A197: France | B197: Nîmes | C197: =43+49/60+59.12/3600 -> 43.83308889 | D197: =4+20/60+59.19/3600 -> 4.349775 | E197: 2004-2013 | F197: 10 | G197: 10 | H197: =G197*100/F197 -> 100 | I197: 33.7 | J197: 4.738729319 | K197: -0.006 | L197: 0.553 | M197: 0.992 | N197: 0 | O197: 156.736 | P197: 44.35626079 | Q197: 3.563 | R197: 5.028 | S197: 0.499 | T197: 0.059
A198: Italy | B198: Firenze | C198: 43.806385 | D198: 11.244434 | E198: 2008,2011,2013 | F198: 3 | G198: 3 | H198: =G198*100/F198 -> 100 | I198: 24 | J198: 8.185352772 | O198: 35.56 | P198: 6.539847093
A199: Italy | B199: Fi1 | C199: 43.783916 | D199: 11.230823 | E199: 2008 | F199: 1 | G199: 1 | H199: =G199*100/F199 -> 100 | I199: 17 | O199: 42.3
A200: France | B200: Montpellier | C200: =43+37/60+53.14/3600 -> 43.63142778 | D200: =3+51/60+2.76/3600 -> 3.850766667 | E200: 2004-2013 | F200: 10 | G200: 10 | H200: =G200*100/F200 -> 100 | I200: 27.6 | J200: 4.060651289 | K200: -0.836 | L200: 0.371 | M200: 0.054 | N200: 0.389 | O200: 104.404 | P200: 32.57833165 | Q200: -5.289 | R200: 3.309 | S200: 0.149 | T200: 0.242
... 43 more rows
